bitfinex/quotes_BTCUSD_20250922
["timestamp","ask_amount","ask_price","bid_price","bid_amount"]
[1758545201349,2.50098779,112860.0,112850.0,60.51565623]
[1758545203012,1.74222779,112860.0,112850.0,60.51565623]
[1758545203322,2.50102779,112860.0,112850.0,60.51565623]
[1758545203944,2.50102981,112860.0,112850.0,60.51565623]
[1758545204153,1.53521681,112860.0,112850.0,60.69288263]
[1758545204355,2.29401681,112860.0,112850.0,60.69288263]
[1758545204561,2.28012073,112860.0,112850.0,60.69288263]
[1758545204771,2.47674673,112860.0,112850.0,60.69288263]
[1758545205139,2.47674673,112860.0,112850.0,60.51565623]
[1758545205531,2.28012073,112860.0,112850.0,60.69288263]
[1758545205932,2.39079219,112860.0,112850.0,60.69288263]
[1758545206143,2.39079219,112860.0,112850.0,60.51565623]
[1758545206969,2.38251495,112860.0,112850.0,60.51565623]
[1758545207175,2.384586,112860.0,112850.0,60.51565623]
[1758545207383,2.42124902,112860.0,112850.0,60.51565623]
[1758545207661,2.40469107,112860.0,112850.0,60.51565623]
[1758545208087,2.39020287,112860.0,112850.0,60.51565623]
[1758545209604,2.42124917,112860.0,112850.0,60.51565623]
[1758545213228,2.29402217,112860.0,112850.0,60.51565623]
[1758545213464,0.72848722,112860.0,112850.0,60.7781523]
[1758545213665,1.80287561,112860.0,112850.0,60.7781523]
[1758545213930,1.50287561,112860.0,112850.0,61.0478523]
[1758545214345,0.88351561,112860.0,112850.0,61.0478523]
[1758545214554,0.83343136,112860.0,112850.0,61.0478523]
[1758545214896,0.74411561,112860.0,112850.0,61.0478523]
[1758545215126,1.17347136,112860.0,112850.0,61.0478523]
[1758545215337,1.17347551,112860.0,112850.0,61.0478523]
[1758545216404,1.50299976,112860.0,112850.0,60.7781523]
[1758545216601,0.40609551,112860.0,112850.0,60.7781523]
[1758545216852,1.16321551,112860.0,112850.0,60.7821523]
[1758545216972,1.16321482,112860.0,112850.0,60.7821523]
[1758545217991,1.49273907,112860.0,112850.0,60.7821523]
[1758545219678,1.49273907,112860.0,112850.0,60.69688263]
[1758545219891,1.49273038,112860.0,112850.0,60.69688263]
[1758545221054,1.49272842,112860.0,112850.0,60.69688263]
[1758545222157,1.16320417,112860.0,112850.0,60.69688263]
[1758545222368,1.49272842,112860.0,112850.0,60.69688263]
[1758545222568,1.16320417,112860.0,112850.0,60.7821523]
[1758545222772,0.73360842,112860.0,112850.0,60.7821523]
[1758545223010,1.49296842,112860.0,112850.0,60.7821523]
[1758545223215,1.47640753,112860.0,112850.0,60.7821523]
[1758545223427,1.49295408,112860.0,112850.0,60.7821523]
[1758545224961,0.73359408,112860.0,112850.0,60.7821523]
[1758545225201,1.16350983,112860.0,112850.0,60.7821523]
[1758545226801,0.68418983,112860.0,112850.0,60.7821523]
[1758545227037,1.16350983,112860.0,112850.0,60.7821523]
[1758545227261,0.40406983,112860.0,112850.0,60.7821523]
[1758545227477,1.16354983,112860.0,112850.0,61.0518523]
[1758545229910,1.14079833,112860.0,112850.0,61.0518523]
[1758545230121,1.16354985,112860.0,112850.0,61.0518523]
[1758545230325,1.4930741,112860.0,112850.0,61.0518523]
[1758545235302,1.4930741,112860.0,112850.0,60.96658263]
[1758545236613,1.31410085,112860.0,112850.0,60.96658263]
[1758545236824,1.1466843,112860.0,112850.0,60.96658263]
[1758545240379,1.48669014,112860.0,112850.0,60.96658263]
[1758545240590,1.65139189,112860.0,112850.0,60.96658263]
[1758545240843,1.65139189,112860.0,112850.0,61.04030748]
[1758545241463,1.67964818,112860.0,112850.0,61.04030748]
[1758545242715,1.67964818,112860.0,112850.0,61.03889748]
[1758545243297,1.18526218,112860.0,112850.0,61.03889748]
[1758545243526,1.67948818,112860.0,112850.0,61.03889748]
[1758545244186,1.18522218,112860.0,112850.0,61.03889748]
[1758545244401,1.67944818,112860.0,112850.0,61.03889748]
[1758545245124,1.67944818,112860.0,112850.0,61.01612748]
[1758545245327,1.18522218,112860.0,112850.0,60.93944263]
[1758545245530,1.67948818,112860.0,112850.0,60.96544263]
[1758545249708,1.67928818,112860.0,112850.0,60.96544263]
[1758545251412,1.67928818,112860.0,112850.0,60.93944263]
[1758545252064,1.67935377,112860.0,112850.0,60.96433263]
[1758545252583,1.67935396,112860.0,112850.0,60.96433263]
[1758545253215,0.92024534,112860.0,112850.0,60.96749263]
[1758545253427,1.67936534,112860.0,112850.0,60.96749263]
[1758545253643,2.15657604,112860.0,112850.0,60.76221623]
[1758545253860,3.27526104,112860.0,112850.0,60.93944263]
[1758545254047,3.26776304,112860.0,112850.0,60.93944263]
[1758545254271,3.26135304,112860.0,112850.0,60.93944263]
[1758545254494,3.10825404,112860.0,112850.0,60.93944263]
[1758545254936,3.36177704,112860.0,112850.0,60.93944263]
[1758545255151,2.61782804,112860.0,112850.0,60.93944263]
[1758545255372,3.10564404,112860.0,112850.0,60.93944263]
[1758545255629,3.00976404,112860.0,112850.0,60.93944263]
[1758545255836,3.10760404,112860.0,112850.0,60.96033263]
[1758545256322,3.10560404,112860.0,112850.0,60.96033263]
[1758545256720,3.10756404,112860.0,112850.0,60.96033263]
[1758545257369,3.10756404,112860.0,112850.0,60.96349263]
[1758545260054,2.25810334,112860.0,112850.0,60.93860263]
[1758545260271,2.43531404,112860.0,112850.0,60.96349263]
[1758545261319,2.25806334,112860.0,112850.0,60.96349263]
[1758545261541,2.43527404,112860.0,112850.0,60.96349263]
[1758545263553,1.49914334,112860.0,112850.0,60.96349263]
[1758545263793,2.23905234,112860.0,112850.0,60.96349263]
[1758545264031,2.41626304,112860.0,112850.0,60.96349263]
[1758545265355,2.4162609,112860.0,112850.0,60.96349263]
[1758545267406,2.4162609,112860.0,112850.0,60.93544263]
[1758545267680,2.4162609,112860.0,112850.0,60.75821623]
[1758545267874,2.6659839,112860.0,112850.0,60.75821623]
[1758545269457,2.6633739,112860.0,112850.0,60.75821623]
[1758545269676,2.64678261,112860.0,112850.0,60.75821623]
[1758545269895,2.64678261,112860.0,112850.0,60.93544263]
[1758545270119,2.64056257,112860.0,112850.0,60.75821623]
[1758545270570,2.66342355,112860.0,112850.0,60.75821623]
[1758545270803,2.64057645,112860.0,112850.0,60.75821623]
[1758545271247,2.66603494,112860.0,112850.0,60.75821623]
[1758545271479,2.63849959,112860.0,112850.0,60.75821623]
[1758545272133,2.66342303,112860.0,112850.0,60.75821623]
[1758545273263,2.66342303,112860.0,112850.0,60.48851623]
[1758545274040,2.66342303,112860.0,112850.0,60.51340623]
[1758545274438,2.6571875,112860.0,112850.0,60.51340623]
[1758545274664,2.66341673,112860.0,112850.0,60.51340623]
[1758545276711,2.96341673,112860.0,112850.0,60.48851623]
[1758545276920,2.98633247,112860.0,112850.0,60.48851623]
[1758545277124,2.97730997,112860.0,112850.0,60.48851623]
[1758545278106,2.21838997,112860.0,112850.0,60.48851623]
[1758545278333,3.36042997,112860.0,112850.0,60.48851623]
[1758545278569,3.35420324,112860.0,112850.0,60.51217623]
[1758545278702,3.36042707,112860.0,112850.0,60.51217623]
[1758545279510,3.36034707,112860.0,112850.0,60.51217623]
[1758545279920,3.36033749,112860.0,112850.0,60.51217623]
[1758545280404,2.21007911,112860.0,112850.0,60.51217623]
[1758545280626,3.36033804,112860.0,112850.0,60.48851623]
[1758545280841,3.3464423,112860.0,112850.0,60.48851623]
[1758545281057,2.5879623,112860.0,112850.0,60.48851623]
[1758545281265,2.5879623,112860.0,112850.0,60.51217623]
[1758545281266,3.3464023,112860.0,112850.0,60.51217623]
[1758545281482,3.34640223,112860.0,112850.0,60.51217623]
[1758545281689,3.34640223,112860.0,112850.0,60.51531623]
[1758545282322,2.20448223,112860.0,112850.0,60.51531623]
[1758545282528,3.34640223,112860.0,112850.0,60.51531623]
[1758545282745,3.34638878,112860.0,112850.0,60.51531623]
[1758545282986,2.20446878,112860.0,112850.0,60.51531623]
[1758545283207,3.34634878,112860.0,112850.0,60.51531623]
[1758545283405,3.34634878,112860.0,112850.0,60.51217623]
[1758545283781,3.36024473,112860.0,112850.0,60.48851623]
[1758545284572,3.36024473,112860.0,112850.0,60.51217623]
[1758545284793,2.21836473,112860.0,112850.0,60.51217623]
[1758545284990,2.21836473,112860.0,112850.0,60.51531623]
[1758545285187,3.36020473,112860.0,112850.0,60.51531623]
[1758545286213,2.21836473,112860.0,112850.0,60.51531623]
[1758545286479,3.36020473,112860.0,112850.0,60.51217623]
[1758545286802,3.37772473,112860.0,112850.0,60.4827456]
[1758545287530,4.11265373,112860.0,112850.0,60.4827456]
[1758545287752,4.11906373,112860.0,112850.0,60.4827456]
[1758545289116,4.11905487,112860.0,112850.0,60.4827456]
[1758545290645,4.11903243,112860.0,112850.0,60.4827456]
[1758545291664,4.11907243,112860.0,112850.0,60.4827456]
[1758545292282,4.02050243,112860.0,112850.0,60.4827456]
[1758545292494,2.95967243,112860.0,112850.0,60.4827456]
[1758545292705,3.62215243,112860.0,112850.0,60.4827456]
[1758545292908,4.10155243,112860.0,112850.0,60.4827456]
[1758545293955,4.10416243,112860.0,112850.0,60.4827456]
[1758545294166,4.11907243,112860.0,112850.0,60.4827456]
[1758545294816,2.97719243,112860.0,112850.0,60.4827456]
[1758545295036,3.63065243,112860.0,112850.0,60.47408871]
[1758545295252,4.11005243,112860.0,112850.0,60.47408871]
[1758545295504,4.11005243,112860.0,112850.0,60.49843871]
[1758545296141,3.27283343,112860.0,112850.0,60.47720871]
[1758545296355,2.22683343,112860.0,112850.0,60.50155871]
[1758545296797,3.36871343,112860.0,112850.0,60.50155871]
[1758545297022,3.36871343,112860.0,112850.0,60.47408871]
[1758545297240,3.36871343,112860.0,112850.0,60.50155871]
[1758545298394,2.22683343,112860.0,112850.0,60.50155871]
[1758545298611,3.66875343,112860.0,112850.0,60.50155871]
[1758545299391,3.66875229,112860.0,112850.0,60.50155871]
[1758545299579,2.52683229,112860.0,112850.0,60.50155871]
[1758545299805,3.36871229,112860.0,112850.0,60.50155871]
[1758545300670,2.62737329,112860.0,112850.0,60.50155871]
[1758545300885,3.36871229,112860.0,112850.0,60.50155871]
[1758545301312,4.11005129,112860.0,112850.0,60.50155871]
[1758545301739,4.11004467,112860.0,112850.0,60.50155871]
[1758545302023,4.11004467,112860.0,112850.0,60.47720871]
[1758545302234,4.11004467,112860.0,112850.0,60.50155871]
[1758545302642,3.28674681,112860.0,112850.0,60.50155871]
[1758545304981,3.28674681,112860.0,112850.0,60.49578784]
[1758545306365,3.78674681,112860.0,112850.0,60.49578784]
[1758545308598,3.78676724,112860.0,112850.0,60.49578784]
[1758545309537,3.7867772,112860.0,112850.0,60.49578784]
[1758545310760,3.7782772,112860.0,112850.0,60.49578784]
[1758545311214,3.77828781,112860.0,112850.0,60.49578784]
[1758545312437,3.77860781,112860.0,112850.0,60.49578784]
[1758545313898,2.63640929,112860.0,112850.0,60.49578784]
[1758545314098,3.45733922,112860.0,112850.0,60.48713153]
[1758545314313,3.78702929,112860.0,112850.0,60.48713153]
[1758545315938,3.78702977,112860.0,112850.0,60.48713153]
[1758545318446,3.30750977,112860.0,112850.0,60.48713153]
[1758545318596,3.78694977,112860.0,112850.0,60.48713153]
[1758545319677,3.78694899,112860.0,112850.0,60.48713153]
[1758545319954,3.78694899,112860.0,112850.0,60.48136066]
[1758545320372,2.64490899,112860.0,112850.0,60.48136066]
[1758545320520,4.08694899,112860.0,112850.0,60.48136066]
[1758545320754,2.81863192,112860.0,112850.0,60.65858706]
[1758545320956,2.20737322,112860.0,112850.0,60.65858706]
[1758545321165,2.53347727,112860.0,112850.0,60.65858706]
[1758545321595,2.19347727,112860.0,112850.0,60.65858706]
[1758545321963,2.53347727,112860.0,112850.0,60.65858706]
[1758545322750,2.24337627,112860.0,112850.0,60.65858706]
[1758545323495,2.42058697,112860.0,112850.0,60.65858706]
[1758545323901,2.43448299,112860.0,112850.0,60.65858706]
[1758545324105,2.43448299,112860.0,112850.0,60.48136066]
[1758545324495,1.93448299,112860.0,112850.0,60.48136066]
[1758545324934,1.92058697,112860.0,112850.0,60.48136066]
[1758545325137,1.92908697,112860.0,112850.0,60.48136066]
[1758545325596,1.92908697,112860.0,112850.0,60.65858706]
[1758545326595,1.92908697,112860.0,112850.0,60.92828706]
[1758545327532,1.92907662,112860.0,112850.0,60.92828706]
[1758545327985,2.22907662,112860.0,112850.0,60.92828706]
[1758545328681,2.22907662,112860.0,112850.0,60.75106066]
[1758545329096,2.22907662,112860.0,112850.0,60.92828706]
[1758545330159,2.22907662,112860.0,112850.0,60.75106066]
[1758545330494,2.22907662,112860.0,112850.0,60.92828706]
[1758545331682,2.22907662,112860.0,112850.0,60.75106066]
[1758545332063,2.22905498,112860.0,112850.0,60.75106066]
[1758545332197,2.22905498,112860.0,112850.0,60.92828706]
[1758545332425,2.22905498,112860.0,112850.0,60.75106066]
[1758545332628,2.22905498,112860.0,112850.0,60.48136066]
[1758545332830,2.22905498,112860.0,112850.0,60.65858706]
[1758545336161,2.22905498,112860.0,112850.0,60.48136066]
[1758545336504,2.22905498,112860.0,112850.0,60.65858706]
[1758545336844,2.2228374,112860.0,112850.0,60.48136066]
[1758545337067,2.22905501,112860.0,112850.0,60.48136066]
[1758545338072,2.24295113,112860.0,112850.0,60.48136066]
[1758545338244,2.23445113,112860.0,112850.0,60.48136066]
[1758545339580,2.23445163,112860.0,112850.0,60.65858706]
[1758545339828,2.23445163,112860.0,112850.0,60.48136066]
[1758545340452,2.23445163,112860.0,112850.0,60.65858706]
[1758545340936,2.23445163,112860.0,112850.0,60.48136066]
[1758545343268,2.24295163,112860.0,112850.0,60.48136066]
[1758545345222,2.54295163,112860.0,112850.0,60.45389066]
[1758545345671,2.54295163,112860.0,112850.0,60.4728003]
[1758545345967,2.54295163,112860.0,112850.0,60.4758803]
[1758545346177,1.78451163,112860.0,112850.0,60.4758803]
[1758545346378,2.92627163,112860.0,112850.0,60.4758803]
[1758545347584,2.92627642,112860.0,112850.0,60.4758803]
[1758545348278,2.91777642,112860.0,112850.0,60.4758803]
[1758545351658,2.9038803,112860.0,112850.0,60.4758803]
[1758545353143,2.9123803,112860.0,112850.0,60.4758803]
[1758545355602,2.9123803,112860.0,112850.0,60.46722461]
[1758545355810,1.7706203,112860.0,112850.0,60.46722461]
[1758545356013,1.78451691,112860.0,112850.0,60.46722461]
[1758545356213,0.11041846,112860.0,112850.0,60.72972068]
[1758545356396,1.19834853,112860.0,112850.0,60.72972068]
[1758545356600,1.53834853,112860.0,112850.0,60.72972068]
[1758545356982,1.53634853,112860.0,112850.0,60.72972068]
[1758545357186,1.52245192,112860.0,112850.0,60.72972068]
[1758545357628,1.18241123,112860.0,112850.0,60.72972068]
[1758545357860,1.51391123,112860.0,112850.0,60.72972068]
[1758545358559,1.51391123,112860.0,112850.0,60.73372068]
[1758545358774,1.51391123,112860.0,112850.0,60.64845101]
[1758545362545,0.92033062,112860.0,112850.0,60.64845101]
[1758545362748,1.67845062,112860.0,112850.0,60.64845101]
[1758545367386,1.67845062,112860.0,112850.0,60.64665101]
[1758545368446,1.58261062,112860.0,112850.0,60.64665101]
[1758545368656,0.42602116,112860.0,112850.0,60.64665101]
[1758545368868,1.43129589,112860.0,112850.0,60.91635101]
[1758545369501,1.43129589,112860.0,112850.0,60.64665101]
[1758545369715,1.43125589,112860.0,112850.0,60.64665101]
[1758545369931,0.42602116,112860.0,112850.0,60.64665101]
[1758545370145,1.43125589,112860.0,112850.0,60.73192068]
[1758545370359,1.42503382,112860.0,112850.0,60.73192068]
[1758545370587,1.41673997,112860.0,112850.0,60.73192068]
[1758545370804,1.42502378,112860.0,112850.0,60.73192068]
[1758545371910,0.66694378,112860.0,112850.0,60.73192068]
[1758545372120,1.42502378,112860.0,112850.0,60.73192068]
[1758545372776,0.15903536,112860.0,112850.0,61.27892731]
[1758545372990,0.43779536,112860.0,112850.0,61.05922731]
[1758545373397,0.38288381,112860.0,112850.0,61.05922731]
[1758545373636,0.38288381,112860.0,112850.0,60.81207258]
[1758545373857,0.3746,112860.0,112850.0,61.05922731]
[1758545374325,0.28230774,112880.0,112870.0,0.177195]
[1758545374326,0.07112623,112880.0,112870.0,0.177195]
[1758545374532,0.85399838,112880.0,112870.0,0.23748557]
[1758545374729,0.85399838,112880.0,112870.0,0.24070557]
[1758545374953,1.39794533,112880.0,112870.0,0.24070557]
[1758545375447,1.39799221,112880.0,112870.0,0.24070557]
[1758545375658,1.40399221,112880.0,112870.0,0.24070557]
[1758545375861,1.15683748,112880.0,112870.0,0.24070557]
[1758545376065,1.40399221,112880.0,112870.0,0.24070557]
[1758545376473,1.40398878,112880.0,112870.0,0.24070557]
[1758545378420,1.15683405,112880.0,112870.0,0.24070557]
[1758545378604,1.40398878,112880.0,112870.0,0.24070557]
[1758545378926,0.39879405,112880.0,112870.0,0.51040557]
[1758545379100,1.39564878,112880.0,112870.0,0.51040557]
[1758545380322,0.63744878,112880.0,112870.0,0.51040557]
[1758545380539,1.39552878,112880.0,112870.0,0.51040557]
[1758545381399,1.14837405,112880.0,112870.0,0.51040557]
[1758545381612,1.39552878,112880.0,112870.0,0.51040557]
[1758545382182,0.05029405,112880.0,112870.0,0.51040557]
[1758545382627,0.80829405,112880.0,112870.0,0.51040557]
[1758545383037,1.05544878,112880.0,112870.0,0.51040557]
[1758545383596,1.07199615,112880.0,112870.0,0.51040557]
[1758545383802,1.05544851,112880.0,112870.0,0.51040557]
[1758545384242,1.07199942,112880.0,112870.0,0.51040557]
[1758545385559,1.06899942,112880.0,112870.0,0.51040557]
[1758545385984,1.06899942,112880.0,112870.0,0.24070557]
[1758545385985,1.06699942,112880.0,112870.0,0.24070557]
[1758545386191,0.81984469,112880.0,112870.0,0.24070557]
[1758545386395,1.06699942,112880.0,112870.0,0.24170557]
[1758545387775,0.81976469,112880.0,112870.0,0.24170557]
[1758545387982,1.06691942,112880.0,112870.0,0.24170557]
[1758545389192,0.56697733,112880.0,112870.0,0.21560557]
[1758545389424,0.8203393,112880.0,112870.0,0.21363557]
[1758545389762,0.8203393,112880.0,112870.0,0.21560557]
[1758545389963,0.8203393,112880.0,112870.0,0.23848557]
[1758545390167,0.8203393,112880.0,112870.0,0.24170557]
[1758545390362,1.0990593,112880.0,112870.0,0.24170557]
[1758545390708,1.01128197,112880.0,112870.0,0.24170557]
[1758545390882,1.01327197,112880.0,112870.0,0.24170557]
[1758545391085,1.2694267,112880.0,112870.0,0.21363557]
[1758545391304,1.2630167,112880.0,112870.0,0.178195]
[1758545391501,1.30500893,112880.0,112870.0,0.178195]
[1758545391903,1.30500893,112880.0,112870.0,0.447895]
[1758545392426,1.33165983,112880.0,112870.0,0.447895]
[1758545393175,1.66545259,112880.0,112870.0,0.447895]
[1758545393557,1.67166065,112880.0,112870.0,0.447895]
[1758545395104,1.6716621,112880.0,112870.0,0.447895]
[1758545395589,1.6626621,112880.0,112870.0,0.51269357]
[1758545395832,1.1814321,112880.0,112870.0,0.51788357]
[1758545396070,0.65559737,112880.0,112870.0,0.54076357]
[1758545396233,0.62894647,112880.0,112870.0,0.54076357]
[1758545396480,1.38686647,112880.0,112870.0,0.54076357]
[1758545396683,1.41351564,112880.0,112870.0,0.54076357]
[1758545397640,1.66525037,112880.0,112870.0,0.447895]
[1758545397845,1.67166037,112880.0,112870.0,0.447895]
[1758545398050,1.66274037,112880.0,112870.0,0.447895]
[1758545399299,0.90482037,112880.0,112870.0,0.44212691]
[1758545399503,1.66270037,112880.0,112870.0,0.50860567]
[1758545400464,0.40844091,112880.0,112870.0,0.51160567]
[1758545400694,1.66063037,112880.0,112870.0,0.53425567]
[1758545400890,1.66270037,112880.0,112870.0,0.50662567]
[1758545401097,1.66282037,112880.0,112870.0,0.50860567]
[1758545401307,1.68769367,112880.0,112870.0,0.53425567]
[1758545401514,1.68562367,112880.0,112870.0,0.53425567]
[1758545401711,1.19131421,112880.0,112870.0,0.53425567]
[1758545401862,1.68562367,112880.0,112870.0,0.53425567]
[1758545402117,1.68564254,112880.0,112870.0,0.53425567]
[1758545402622,0.68048781,112880.0,112870.0,0.53425567]
[1758545402822,1.43848781,112880.0,112870.0,0.53425567]
[1758545403071,0.09333308,112880.0,112870.0,0.53425567]
[1758545403278,0.40574168,112880.0,112870.0,0.56440757]
[1758545404032,0.38915411,112880.0,112870.0,0.56440757]
[1758545404242,0.40574951,112880.0,112870.0,0.56440757]
[1758545404441,0.01451411,112880.0,112870.0,0.8115623]
[1758545404669,0.38911411,112880.0,112870.0,0.8115623]
[1758545406445,0.38907411,112880.0,112870.0,0.8615623]
[1758545406668,0.38907411,112880.0,112870.0,0.9115623]
[1758545407305,0.38907411,112880.0,112870.0,0.8615623]
[1758545407520,0.37456,112880.0,112870.0,1.3595623]
[1758545407740,0.44638279,112900.0,112890.0,0.17716361]
[1758545407951,0.56503245,112900.0,112890.0,0.49087325]
[1758545408158,0.56503245,112900.0,112890.0,0.51352325]
[1758545408390,0.53838652,112900.0,112890.0,0.51352325]
[1758545408597,0.52179767,112900.0,112890.0,0.51352325]
[1758545408807,0.76414081,112900.0,112890.0,0.54367515]
[1758545409440,0.28502081,112900.0,112890.0,0.54367515]
[1758545409700,0.06184933,112910.0,112900.0,0.17714791]
[1758545409923,0.40128371,112910.0,112900.0,0.27686022]
[1758545410361,0.37464,112910.0,112900.0,0.27686022]
[1758545410586,0.62179473,112910.0,112900.0,0.27686022]
[1758545410792,0.62377473,112910.0,112900.0,0.27686022]
[1758545410997,0.62377473,112910.0,112900.0,0.24923022]
[1758545411400,0.37662,112910.0,112900.0,0.25223022]
[1758545411641,0.62377473,112910.0,112900.0,0.25223022]
[1758545412234,0.66052999,112910.0,112900.0,0.25223022]
[1758545413104,0.41337526,112910.0,112900.0,0.25223022]
[1758545413319,0.66052999,112910.0,112900.0,0.25223022]
[1758545413967,0.41337526,112910.0,112900.0,0.25223022]
[1758545414186,0.66052999,112910.0,112900.0,0.27813022]
[1758545414406,0.28390999,112910.0,112900.0,0.28123022]
[1758545414612,0.79451526,112910.0,112900.0,0.28123022]
[1758545415065,0.79447526,112910.0,112900.0,0.28123022]
[1758545415784,0.61379647,112920.0,112910.0,0.17713222]
[1758545416034,1.37363719,112920.0,112910.0,0.24768394]
[1758545416435,1.14573035,112920.0,112910.0,0.24768394]
[1758545416638,1.00699545,112920.0,112910.0,0.24768394]
[1758545417234,1.00799545,112920.0,112910.0,0.24768394]
[1758545417748,1.26416018,112920.0,112910.0,0.50909016]
[1758545418120,1.26416018,112920.0,112910.0,0.43853844]
[1758545418337,1.29947837,112920.0,112910.0,0.43853844]
[1758545419572,1.30775291,112920.0,112910.0,0.43853844]
[1758545420123,0.30287818,112920.0,112910.0,0.43853844]
[1758545420335,1.38960818,112920.0,112910.0,0.44365844]
[1758545420553,1.39162739,112920.0,112910.0,0.53686731]
[1758545420769,1.39162739,112920.0,112910.0,0.53376731]
[1758545421597,1.39783261,112920.0,112910.0,0.53376731]
[1758545421873,0.05093788,112920.0,112910.0,0.51294731]
[1758545422077,1.14865788,112920.0,112910.0,0.53686731]
[1758545423490,1.14765788,112920.0,112910.0,0.53686731]
[1758545424277,1.39481289,112920.0,112910.0,0.53686731]
[1758545424477,1.39481289,112920.0,112910.0,0.28246109]
[1758545424657,1.14765816,112920.0,112910.0,0.28446109]
[1758545424933,1.14765816,112920.0,112910.0,0.28136109]
[1758545424934,1.14967816,112920.0,112910.0,0.28136109]
[1758545425559,1.4787525,112920.0,112910.0,0.28136109]
[1758545425778,1.4787525,112920.0,112910.0,0.54276731]
[1758545427031,1.14967816,112920.0,112910.0,0.54580731]
[1758545427239,0.80757816,112920.0,112910.0,0.54583731]
[1758545428078,0.80955816,112920.0,112910.0,0.54583731]
[1758545428293,0.80955816,112920.0,112910.0,0.51884731]
[1758545428475,1.1386325,112920.0,112910.0,0.51884731]
[1758545428873,1.1386325,112920.0,112910.0,0.54279731]
[1758545429903,1.1386325,112920.0,112910.0,0.54583731]
[1758545430103,0.04993816,112920.0,112910.0,0.54583731]
[1758545430334,0.80757816,112920.0,112910.0,0.54583731]
[1758545430538,0.80955816,112920.0,112910.0,0.54583731]
[1758545431351,0.80956897,112920.0,112910.0,0.54583731]
[1758545431959,0.80137294,112920.0,112910.0,0.54583731]
[1758545433395,0.70557294,112920.0,112910.0,0.54583731]
[1758545433614,0.80137294,112920.0,112910.0,0.54583731]
[1758545433819,0.04373294,112920.0,112910.0,0.54583731]
[1758545434026,0.32233294,112920.0,112910.0,0.54583731]
[1758545434240,0.41813294,112920.0,112910.0,0.54583731]
[1758545435068,0.41815384,112920.0,112910.0,0.54583731]
[1758545435262,0.42437657,112920.0,112910.0,0.57598921]
[1758545435728,0.67809434,112940.0,112930.0,0.17710085]
[1758545435950,1.17570829,112940.0,112930.0,0.45621716]
[1758545436272,1.20234703,112940.0,112930.0,0.45621716]
[1758545436932,1.20334703,112940.0,112930.0,0.45621716]
[1758545437152,1.5177229,112940.0,112930.0,0.45621716]
[1758545439280,0.7536729,112940.0,112930.0,0.45621716]
[1758545439539,1.5086629,112940.0,112930.0,0.45621716]
[1758545440480,1.5086629,112940.0,112930.0,0.43850707]
[1758545440685,1.48102416,112940.0,112930.0,0.43850707]
[1758545441156,1.48102416,112940.0,112930.0,0.44250707]
[1758545441664,1.48362416,112940.0,112930.0,0.44250707]
[1758545441801,1.181187,112940.0,112930.0,0.44250707]
[1758545442041,1.51026134,112940.0,112930.0,0.50716843]
[1758545442211,1.51667134,112940.0,112930.0,0.50716843]
[1758545442800,1.68414934,112940.0,112930.0,0.44250707]
[1758545443012,1.86123451,112940.0,112930.0,0.44250707]
[1758545443444,1.53216017,112940.0,112930.0,0.44250707]
[1758545443622,1.86123451,112940.0,112930.0,0.44250707]
[1758545444457,2.16123451,112940.0,112930.0,0.26540622]
[1758545444681,2.16123451,112940.0,112930.0,0.25964043]
[1758545445265,2.54439451,112940.0,112930.0,0.18110085]
[1758545446032,0.34,112930.0,112920.0,0.43275697]
[1758545446247,1.47836329,112930.0,112920.0,0.43275697]
[1758545446694,1.50500399,112930.0,112920.0,0.43275697]
[1758545447210,1.33937399,112930.0,112920.0,0.50156044]
[1758545447422,1.57875299,112930.0,112920.0,0.50156044]
[1758545447629,2.04123299,112930.0,112920.0,0.50156044]
[1758545447780,2.05576616,112930.0,112920.0,0.50156044]
[1758545448199,2.05576616,112930.0,112920.0,0.43275697]
[1758545448861,2.05676616,112930.0,112920.0,0.43275697]
[1758545449684,1.29920616,112930.0,112920.0,0.43275697]
[1758545450148,0.05876782,112930.0,112920.0,0.54145278]
[1758545450357,0.04427587,112940.0,112930.0,0.20725275]
[1758545450358,0.41901587,112940.0,112930.0,0.20725275]
[1758545450580,0.65340234,112940.0,112930.0,0.56538709]
[1758545450802,0.6114,112940.0,112930.0,0.56538709]
[1758545451215,0.6114,112940.0,112930.0,0.23631275]
[1758545452041,0.37629224,112950.0,112940.0,0.17708517]
[1758545452248,0.38251536,112950.0,112940.0,0.27763686]
[1758545452447,1.4712497,112950.0,112940.0,0.21842496]
[1758545452865,0.9922497,112950.0,112940.0,0.22049496]
[1758545453066,1.4738497,112950.0,112940.0,0.21842496]
[1758545453273,1.4802597,112950.0,112940.0,0.21842496]
[1758545453479,1.4802597,112950.0,112940.0,0.17708517]
[1758545453687,0.7225797,112950.0,112940.0,0.17708517]
[1758545453903,1.47411658,112950.0,112940.0,0.18208517]
[1758545454110,1.50075357,112950.0,112940.0,0.17708517]
[1758545454449,1.01534357,112950.0,112940.0,0.17908517]
[1758545454651,1.49174357,112950.0,112940.0,0.21470377]
[1758545454865,1.49174357,112950.0,112940.0,0.21770377]
[1758545455311,0.40490923,112950.0,112940.0,0.21470377]
[1758545455515,0.40490923,112950.0,112940.0,0.21570377]
[1758545455516,1.49182357,112950.0,112940.0,0.21570377]
[1758545455960,1.49804355,112950.0,112940.0,0.21570377]
[1758545456621,1.47140656,112950.0,112940.0,0.21570377]
[1758545456812,0.71356656,112950.0,112940.0,0.21570377]
[1758545457112,1.47132656,112950.0,112940.0,0.21570377]
[1758545457955,0.71356656,112950.0,112940.0,0.21785377]
[1758545458165,1.47136656,112950.0,112940.0,0.24165377]
[1758545459612,1.47136656,112950.0,112940.0,0.21570377]
[1758545460344,1.47132656,112950.0,112940.0,0.21570377]
[1758545460543,1.47132656,112950.0,112940.0,0.24165377]
[1758545460544,1.13599224,112950.0,112940.0,0.24165377]
[1758545460728,1.47128433,112950.0,112940.0,0.24485377]
[1758545460938,1.14022999,112950.0,112940.0,0.24485377]
[1758545461088,1.46930433,112950.0,112940.0,0.24485377]
[1758545461300,1.47129433,112950.0,112940.0,0.21570377]
[1758545461701,1.47388433,112950.0,112940.0,0.21570377]
[1758545461974,1.48029433,112950.0,112940.0,0.21570377]
[1758545462361,1.50516368,112950.0,112940.0,0.21570377]
[1758545463158,1.50516368,112950.0,112940.0,0.4713442]
[1758545463341,0.71564636,112950.0,112940.0,0.4713442]
[1758545463515,1.47340636,112950.0,112940.0,0.4734942]
[1758545463724,1.47599636,112950.0,112940.0,0.4713442]
[1758545464712,1.48240636,112950.0,112940.0,0.4713442]
[1758545464978,1.47599636,112950.0,112940.0,0.4713442]
[1758545465132,1.50520251,112950.0,112940.0,0.4713442]
[1758545465335,1.48240636,112950.0,112940.0,0.4713442]
[1758545468229,1.14421202,112950.0,112940.0,0.4734942]
[1758545468435,1.47328636,112950.0,112940.0,0.4734942]
[1758545468615,1.47328636,112950.0,112940.0,0.4972942]
[1758545468832,1.37752636,112950.0,112940.0,0.4972942]
[1758545469057,1.47328636,112950.0,112940.0,0.4972942]
[1758545469469,0.71564636,112950.0,112940.0,0.4972942]
[1758545469723,1.14218202,112950.0,112940.0,0.5004942]
[1758545469929,1.47133636,112950.0,112940.0,0.5004942]
[1758545470993,0.66334202,112950.0,112940.0,0.5004942]
[1758545471203,1.47133636,112950.0,112940.0,0.5004942]